lending/lending_fUSD_20250429
["ID","MTS","AMOUNT","RATE_DAILY","PERIOD"]
[359284780,1745892644173,-150.0,0.00027397,2]
[359284782,1745892644183,-470.0,0.00027397,2]
[359284784,1745892644193,-861.55,0.00027397,2]
[359284786,1745892644203,-493.81,0.00027397,2]
[359284788,1745892644213,-150.0,0.00027397,2]
[359284790,1745892644223,-150.0,0.00027397,2]
[359284792,1745892644233,-150.0,0.00027397,2]
[359284794,1745892644243,-166.675126,0.00027397,2]
[359284796,1745892644252,-8747.509096,0.00027397,2]
[359284798,1745892644263,-703.34,0.00027397,2]
[359284800,1745892644272,-300.0,0.00027397,2]
[359284802,1745892644282,-150.0,0.00027397,2]
[359284804,1745892644292,-818.82,0.00027397,2]
[359284806,1745892644307,-1083.51,0.0002741,2]
[359284808,1745892644317,-577.0,0.00027424,2]
[359284810,1745892644327,-150.0,0.00027424,2]
[359284812,1745892644337,-150.0,0.00027424,2]
[359284814,1745892644347,-150.0,0.00027424,2]
[359284816,1745892644357,-150.0,0.00027424,2]
[359284818,1745892644367,-150.0,0.00027424,2]
[359284820,1745892644377,-251.05216898,0.00027429,2]
[359284822,1745892644387,-577.0,0.00027452,2]
[359284824,1745892644397,-150.0,0.00027452,2]
[359284826,1745892644408,-150.0,0.00027452,2]
[359284828,1745892644417,-205.42358867,0.00027452,2]
[359284830,1745892644427,-203.72533815,0.00027452,2]
[359284832,1745892644437,-200.0,0.00027452,2]
[359284834,1745892644447,-577.0,0.00027479,2]
[359284836,1745892644457,-200.0,0.00027479,2]
[359284838,1745892644467,-200.0,0.00027479,2]
[359284840,1745892644477,-176.38,0.00027492,2]
[359284842,1745892644487,-33590.3660382,0.000275,2]
[359284844,1745892644497,-577.0,0.00027507,2]
[359284846,1745892644508,-8886.27273199,0.0002751,2]
[359284848,1745892644518,-577.0,0.00027534,2]
[359284850,1745892644527,-4937.38265035,0.00027555,7]
[359284852,1745892644537,-577.0,0.00027561,2]
[359284855,1745892644553,-577.0,0.00027589,2]
[359284857,1745892644571,-577.0,0.00027616,2]
[359284860,1745892644584,-577.0,0.00027644,2]
[359284862,1745892644605,-134361.464153,0.00027651,2]
[359284865,1745892644621,-3119.65226375,0.00027651,2]
[359284868,1745892644636,-33590.3660382,0.00027652,2]
[359284870,1745892644652,-67180.7320764,0.00027658,2]
[359284872,1745892644666,-1871.79135825,0.00027658,2]
[359284874,1745892644678,-702.4,0.0002766,2]
[359284876,1745892644693,-500.0,0.0002766,2]
[359284878,1745892644709,-500.0,0.0002766,2]
[359284881,1745892644724,-736.71,0.0002766,2]
[359284883,1745892644739,-33590.3660382,0.0002766,2]
[359284885,1745892644754,-623.93045275,0.0002766,2]
[359284887,1745892644768,-134361.464153,0.00027661,2]
[359284890,1745892644784,-3119.65226375,0.00027661,2]
[359284892,1745892644798,-277.17718286,0.00027661,2]
[359284894,1745892644812,-470.0,0.00027668,2]
[359284896,1745892644827,-535.55,0.00027668,2]
[359284898,1745892644841,-14375.2,0.00027668,2]
[359284900,1745892644854,-470.0,0.00027668,2]
[359284902,1745892644866,-470.0,0.00027668,2]
[359284904,1745892644879,-494.79,0.00027668,2]
[359284907,1745892644896,-523.45,0.00027668,2]
[359284908,1745892644908,-1127.4,0.00027668,2]
[359284911,1745892644919,-502.57,0.00027668,2]
[359284913,1745892644932,-4032.63,0.00027668,2]
[359284915,1745892644947,-591.6,0.00027668,2]
[359284917,1745892644960,-1023.79,0.00027668,2]
[359284919,1745892644972,-470.0,0.00027668,2]
[359284921,1745892644985,-913.39,0.00027668,2]
[359284923,1745892644997,-541.23,0.00027668,2]
[359284925,1745892645010,-1130.83,0.00027668,2]
[359284927,1745892645022,-500.0,0.00027669,2]
[359284929,1745892645035,-500.0,0.00027669,2]
[359284932,1745892645052,-500.0,0.00027669,2]
[359284934,1745892645065,-500.0,0.00027669,2]
[359284936,1745892645079,-470.66357159,0.0002767,2]
[359284938,1745892645095,-473.38385371,0.0002767,2]
[359284940,1745892645108,-470.49794447,0.0002767,2]
[359284942,1745892645123,-618.28733099,0.0002767,2]
[359284944,1745892645136,-364.99117843,0.0002767,2]
[359284946,1745892645149,-206.84403673,0.0002767,2]
[359284948,1745892645163,-400.30606875,0.0002767,2]
[359284950,1745892645176,-471.52999619,0.0002767,2]
[359284952,1745892645189,-195.43114532,0.0002767,2]
[359284954,1745892645202,-400.49120577,0.0002767,2]
[359284956,1745892645215,-400.0,0.0002767,2]
[359284959,1745892645229,-472.47750512,0.0002767,2]
[359284963,1745892645258,-403.27730146,0.0002767,2]
[359284965,1745892645276,-470.70532016,0.0002767,2]
[359284968,1745892645295,-196.96464662,0.0002767,2]
[359284970,1745892645313,-470.0,0.0002767,2]
[359284973,1745892645332,-470.0,0.0002767,2]
[359284975,1745892645349,-519.13899949,0.0002767,2]
[359284978,1745892645367,-400.46528256,0.0002767,2]
[359284980,1745892645384,-400.45995552,0.0002767,2]
[359284983,1745892645398,-470.0,0.0002767,2]
[359284985,1745892645413,-470.0,0.0002767,2]
[359284986,1745892645428,-470.52628325,0.0002767,2]
[359284987,1745892645442,-702.4,0.0002767,2]
[359284988,1745892645457,-702.4,0.0002767,2]
[359284989,1745892645471,-470.0,0.0002767,2]
[359284990,1745892645485,-1240.83,0.0002767,2]
[359284991,1745892645498,-470.0,0.0002767,2]
[359284992,1745892645512,-470.0,0.0002767,2]
[359284993,1745892645526,-470.0,0.0002767,2]
[359284994,1745892645539,-470.0,0.0002767,2]
[359284995,1745892645552,-470.0,0.0002767,2]
[359284996,1745892645568,-611.2,0.0002767,2]
[359284997,1745892645582,-470.0,0.0002767,2]
[359284998,1745892645596,-470.0,0.0002767,2]
[359284999,1745892645608,-470.0,0.0002767,2]
[359285000,1745892645622,-470.0,0.0002767,2]
[359285001,1745892645636,-470.0,0.0002767,2]
[359285002,1745892645655,-600.69912417,0.0002767,2]
[359285003,1745892645672,-470.0,0.0002767,2]
[359285004,1745892645688,-500.0,0.0002767,2]
[359285005,1745892645705,-500.0,0.0002767,2]
[359285007,1745892645721,-500.0,0.0002767,2]
[359285010,1745892645736,-500.0,0.0002767,2]
[359285012,1745892645751,-188.94033998,0.0002767,2]
[359285017,1745892645812,-281.05966002,0.0002767,2]
[359285018,1745892645826,-470.0,0.0002767,2]
[359285019,1745892645841,-470.0,0.0002767,2]
[359285020,1745892645855,-470.0,0.0002767,2]
[359285021,1745892645869,-308.94033998,0.0002767,2]
[359285022,1745892645966,470.0,0.00038356,30]
[359285024,1745892646340,470.0,0.00038356,30]
[359285025,1745892646362,-684.60966002,0.0002767,2]
[359285026,1745892646371,-470.0,0.0002767,2]
[359285027,1745892646381,-470.0,0.0002767,2]
[359285028,1745892646391,-470.0,0.0002767,2]
[359285029,1745892646402,-470.0,0.0002767,2]
[359285030,1745892646412,-1325.81,0.0002767,2]
[359285031,1745892646423,-470.0,0.0002767,2]
[359285032,1745892646433,-2534.16,0.0002767,2]
[359285033,1745892646443,-470.0,0.0002767,2]
[359285034,1745892646453,-664.91,0.0002767,2]
[359285035,1745892646462,-736.71,0.0002767,2]
[359285036,1745892646472,-736.71,0.0002767,2]
[359285037,1745892646482,-470.0,0.0002767,2]
[359285038,1745892646492,-780.39,0.0002767,2]
[359285039,1745892646502,-470.0,0.0002767,2]
[359285040,1745892646512,-532.45,0.0002767,2]
[359285041,1745892646522,-470.0,0.0002767,2]
[359285042,1745892646531,-500.0,0.0002767,2]
[359285043,1745892646876,-577.0,0.00027671,2]
[359285044,1745892646900,-470.0,0.00027671,2]
[359285045,1745892646909,-470.0,0.00027671,2]
[359285047,1745892646920,-470.0,0.00027671,2]
[359285050,1745892646929,-296.04313898,0.00027671,2]
[359285051,1745892646940,-470.0,0.00027671,2]
[359285053,1745892646950,-470.0,0.00027671,2]
[359285055,1745892646959,-470.0,0.00027671,2]
[359285057,1745892646969,-470.0,0.00027671,2]
[359285059,1745892646979,-470.0,0.00027671,2]
[359285061,1745892646989,-470.0,0.00027671,2]
[359285063,1745892646998,-470.0,0.00027671,2]
[359285065,1745892647008,-470.0,0.00027671,2]
[359285067,1745892647017,-470.0,0.00027671,2]
[359285069,1745892647027,-470.0,0.00027671,2]
[359285071,1745892647036,-470.0,0.00027671,2]
[359285073,1745892647045,-470.0,0.00027671,2]
[359285075,1745892647056,-470.0,0.00027671,2]
[359285077,1745892647066,-470.0,0.00027671,2]
[359285079,1745892647075,-470.0,0.00027671,2]
[359285081,1745892647088,-470.0,0.00027671,2]
[359285083,1745892647097,-470.0,0.00027671,2]
[359285085,1745892647106,-470.0,0.00027671,2]
[359285088,1745892647116,-470.0,0.00027671,2]
[359285090,1745892647126,-470.0,0.00027671,2]
[359285091,1745892647136,-470.0,0.00027671,2]
[359285094,1745892647147,-444.00908394,0.00027671,2]
[359285096,1745892647158,-470.0,0.00027671,2]
[359285098,1745892647168,-238.51478709,0.00027671,2]
[359285101,1745892647193,-231.48521291,0.00027671,2]
[359285103,1745892647202,-470.0,0.00027671,2]
[359285105,1745892647211,-470.0,0.00027671,2]
[359285107,1745892647221,-470.0,0.00027671,2]
[359285109,1745892647231,-470.0,0.00027671,2]
[359285111,1745892647241,-470.0,0.00027671,2]
[359285114,1745892647250,-470.0,0.00027671,2]
[359285115,1745892647260,-470.0,0.00027671,2]
[359285118,1745892647269,-470.0,0.00027671,2]
[359285120,1745892647279,-470.0,0.00027671,2]
[359285121,1745892647289,-470.0,0.00027671,2]
[359285123,1745892647299,-470.0,0.00027671,2]
[359285125,1745892647308,-470.0,0.00027671,2]
[359285127,1745892647318,-470.0,0.00027671,2]
[359285129,1745892647327,-470.0,0.00027671,2]
[359285132,1745892647337,-470.0,0.00027671,2]
[359285133,1745892647346,-470.0,0.00027671,2]
[359285135,1745892647356,-470.0,0.00027671,2]
[359285137,1745892647366,-470.0,0.00027671,2]
[359285139,1745892647375,-470.0,0.00027671,2]
[359285141,1745892647385,-536.98,0.00027671,2]
[359285143,1745892647394,-470.0,0.00027671,2]
[359285145,1745892647404,-470.0,0.00027671,2]
[359285148,1745892647414,-470.0,0.00027671,2]
[359285150,1745892647424,-470.0,0.00027671,2]
[359285152,1745892647434,-470.0,0.00027671,2]
[359285154,1745892647444,-586.9583657,0.00027671,2]
[359285156,1745892647454,-579.73,0.00027671,2]
[359285158,1745892647464,-1322.15,0.00027671,2]
[359285159,1745892647474,-470.0,0.00027671,2]
[359285161,1745892647485,-470.0,0.00027671,2]
[359285163,1745892647494,-470.0,0.00027671,2]
[359285165,1745892647503,-470.0,0.00027671,2]
[359285167,1745892647513,-470.0,0.00027671,2]
[359285169,1745892647522,-470.0,0.00027671,2]
[359285171,1745892647531,-470.0,0.00027671,2]
[359285173,1745892647541,-470.0,0.00027671,2]
[359285175,1745892647551,-470.0,0.00027671,2]
[359285177,1745892647562,-470.0,0.00027671,2]
[359285179,1745892647571,-470.0,0.00027671,2]
[359285181,1745892647580,-470.0,0.00027671,2]
[359285183,1745892647590,-472.67955132,0.00027671,2]
[359285185,1745892647600,-642.9,0.00027671,2]
[359285187,1745892647610,-470.0,0.00027671,2]
[359285190,1745892647619,-470.0,0.00027671,2]
[359285191,1745892647629,-470.0,0.00027671,2]
[359285194,1745892647639,-470.0,0.00027671,2]
[359285195,1745892647649,-470.0,0.00027671,2]
[359285197,1745892647659,-470.0,0.00027671,2]
[359285200,1745892647668,-470.0,0.00027671,2]
[359285202,1745892647678,-686.37,0.00027671,2]
[359285204,1745892647688,-436.22708989,0.00027671,2]
[359285206,1745892647697,-470.0,0.00027671,2]
[359285208,1745892647707,-474.50127779,0.00027671,2]
[359285210,1745892647716,-470.0,0.00027671,2]
[359285212,1745892647726,-470.0,0.00027671,2]
[359285214,1745892647736,-470.0,0.00027671,2]
[359285216,1745892647747,-414.31798929,0.00027671,2]
[359285217,1745892647756,-470.0,0.00027671,2]
[359285219,1745892647766,-37.12993448,0.00027671,2]
[359285228,1745892648205,615.41,0.00038356,30]
[359285229,1745892648252,470.0,0.00038356,30]
[359285230,1745892648483,-1933.32088128,0.00027601,2]
[359285231,1745892648499,-548.86262343,0.00027601,2]
[359285232,1745892648509,-538.99006552,0.00027671,2]
[359285233,1745892648518,-300.0,0.00027671,2]
[359285234,1745892648527,-745.63,0.00027671,2]
[359285235,1745892648537,-470.0,0.00027671,2]
[359285236,1745892648547,-802.05,0.00027671,2]
[359285237,1745892648557,-470.0,0.00027671,2]
[359285238,1745892648567,-470.0,0.00027671,2]
[359285239,1745892648576,-470.0,0.00027671,2]
[359285240,1745892648586,-374.88570035,0.00027671,2]
[359285241,1745892648597,-143.00429965,0.00027671,2]
[359285242,1745892648608,-470.0,0.00027671,2]
[359285243,1745892648617,-470.0,0.00027671,2]
[359285244,1745892648627,-470.0,0.00027671,2]
[359285245,1745892648637,-470.0,0.00027671,2]
[359285246,1745892648647,-470.0,0.00027671,2]
[359285247,1745892648656,-470.0,0.00027671,2]
[359285248,1745892648665,-470.0,0.00027671,2]
[359285249,1745892648675,-470.0,0.00027671,2]
[359285250,1745892648684,-470.0,0.00027671,2]
[359285251,1745892648694,-470.0,0.00027671,2]
[359285252,1745892648704,-470.0,0.00027671,2]
[359285253,1745892648714,-470.0,0.00027671,2]
[359285254,1745892648723,-470.0,0.00027671,2]
[359285255,1745892648733,-470.0,0.00027671,2]
[359285256,1745892648742,-470.0,0.00027671,2]
[359285257,1745892648751,-470.0,0.00027671,2]
[359285258,1745892648761,-470.0,0.00027671,2]
[359285259,1745892648770,-470.0,0.00027671,2]
[359285260,1745892648780,-470.0,0.00027671,2]
[359285261,1745892648789,-470.0,0.00027671,2]
[359285262,1745892648799,-470.0,0.00027671,2]
[359285263,1745892648809,-500.0,0.00027671,2]
[359285264,1745892648819,-470.0,0.00027671,2]
[359285265,1745892648829,-470.0,0.00027671,2]
[359285266,1745892648838,-470.0,0.00027671,2]
[359285267,1745892648848,-658.09,0.00027671,2]
[359285268,1745892648858,-470.0,0.00027671,2]
[359285269,1745892648868,-397.42029312,0.00027671,2]
[359285270,1745892648878,-470.0,0.00027671,2]
[359285271,1745892648888,-470.0,0.00027671,2]
[359285272,1745892648898,-1106.53,0.00027671,2]
[359285273,1745892648908,-470.0,0.00027671,2]
[359285274,1745892648917,-470.0,0.00027671,2]
[359285275,1745892648926,-470.0,0.00027671,2]
[359285276,1745892648936,-404.90116259,0.00027671,2]
[359285277,1745892648958,-65.09883741,0.00027671,2]
[359285278,1745892648968,-470.0,0.00027671,2]
[359285279,1745892648977,-505.96,0.00027671,2]
[359285280,1745892648987,-470.0,0.00027671,2]
[359285281,1745892648996,-470.0,0.00027671,2]
[359285282,1745892649006,-470.0,0.00027671,2]
[359285283,1745892649015,-870.09,0.00027671,2]
[359285284,1745892649024,-470.0,0.00027671,2]
[359285285,1745892649034,-470.0,0.00027671,2]
[359285286,1745892649043,-470.0,0.00027671,2]
[359285287,1745892649053,-470.0,0.00027671,2]
[359285288,1745892649063,-470.0,0.00027671,2]
[359285289,1745892649074,-930.92,0.00027671,2]
[359285290,1745892649087,-470.0,0.00027671,2]
[359285291,1745892649097,-630.91,0.00027671,2]
[359285292,1745892649106,-250.0,0.00027671,2]
[359285293,1745892649115,-470.0,0.00027671,2]
[359285294,1745892649126,-546.68,0.00027671,2]
[359285295,1745892649136,-470.0,0.00027671,2]
[359285296,1745892649146,-470.0,0.00027671,2]
[359285297,1745892649157,-524.55791967,0.00027671,2]
[359285298,1745892649167,-470.0,0.00027671,2]
[359285299,1745892649177,-391.95639926,0.00027671,2]
[359285300,1745892649186,-470.0,0.00027671,2]
[359285301,1745892649197,-470.0,0.00027671,2]
[359285302,1745892649206,-470.0,0.00027671,2]
[359285303,1745892649217,-470.0,0.00027671,2]
[359285304,1745892649227,-593.51,0.00027671,2]
[359285305,1745892649238,-470.0,0.00027671,2]
[359285306,1745892649248,-470.0,0.00027671,2]
[359285307,1745892649258,-470.0,0.00027671,2]
[359285308,1745892649267,-470.0,0.00027671,2]
[359285309,1745892649277,-554.22,0.00027671,2]
[359285310,1745892649287,-470.0,0.00027671,2]
[359285311,1745892649297,-523.73,0.00027671,2]
[359285312,1745892649307,-470.0,0.00027671,2]
[359285313,1745892649318,-571.76,0.00027671,2]
[359285314,1745892649327,-470.0,0.00027671,2]
[359285315,1745892649337,-470.0,0.00027671,2]
[359285316,1745892649347,-628.44,0.00027671,2]
[359285317,1745892649356,-498.76,0.00027671,2]
[359285318,1745892649366,-470.0,0.00027671,2]
[359285319,1745892649376,-510.91667274,0.00027671,2]
[359285320,1745892649386,-470.0,0.00027671,2]
[359285321,1745892649395,-470.0,0.00027671,2]
[359285322,1745892649405,-62.63398906,0.00027671,2]
[359285323,1745892649419,-407.36601094,0.00027671,2]
[359285324,1745892649429,-470.0,0.00027671,2]
[359285325,1745892649439,-470.0,0.00027671,2]
[359285326,1745892649449,-600.39,0.00027671,2]
[359285327,1745892649459,-470.0,0.00027671,2]
[359285328,1745892649468,-470.0,0.00027671,2]
[359285329,1745892649478,-470.0,0.00027671,2]
[359285330,1745892649488,-470.0,0.00027671,2]
[359285331,1745892649497,-470.0,0.00027671,2]
[359285332,1745892649506,-470.0,0.00027671,2]
[359285333,1745892649517,-372.25030923,0.00027671,2]
[359285334,1745892649528,-97.74969077,0.00027671,2]
[359285335,1745892649538,-470.0,0.00027671,2]
[359285336,1745892649547,-470.0,0.00027671,2]
[359285337,1745892649558,-470.0,0.00027671,2]
[359285338,1745892649568,-554.45,0.00027671,2]
[359285339,1745892649578,-917.475519,0.00027671,2]
[359285340,1745892649589,-516.59,0.00027671,2]
[359285341,1745892649598,-470.0,0.00027671,2]
[359285342,1745892649608,-470.0,0.00027671,2]
[359285343,1745892649618,-470.0,0.00027671,2]
[359285344,1745892649628,-470.0,0.00027671,2]
[359285345,1745892649639,-470.0,0.00027671,2]
[359285346,1745892649648,-192.29688263,0.00027671,2]
[359285347,1745892649658,-470.0,0.00027671,2]
[359285348,1745892649668,-470.0,0.00027671,2]
[359285349,1745892649678,-583.914723,0.00027671,2]
[359285350,1745892649688,-470.0,0.00027671,2]
[359285351,1745892649697,-470.0,0.00027671,2]
[359285352,1745892649707,-470.0,0.00027671,2]
[359285353,1745892649717,-655.13,0.00027671,2]
[359285354,1745892649727,-164.03440389,0.00027671,2]
[359285355,1745892649739,-305.96559611,0.00027671,2]
[359285356,1745892649748,-73.23540319,0.00027671,2]
[359285357,1745892649760,-821.45459681,0.00027671,2]
[359285358,1745892649770,-470.0,0.00027671,2]
[359285359,1745892649780,-640.32,0.00027671,2]
[359285360,1745892649790,-474.34,0.00027671,2]
[359285361,1745892649799,-470.0,0.00027671,2]
[359285362,1745892649810,-470.0,0.00027671,2]
[359285363,1745892649821,-630.29,0.00027671,2]
[359285364,1745892649831,-470.0,0.00027671,2]
[359285365,1745892649840,-470.0,0.00027671,2]
[359285366,1745892649850,-470.0,0.00027671,2]
[359285367,1745892649859,-470.0,0.00027671,2]
[359285368,1745892649868,-470.0,0.00027671,2]
[359285369,1745892649878,-470.0,0.00027671,2]
[359285370,1745892649888,-500.0,0.00027671,2]
[359285371,1745892649898,-470.0,0.00027671,2]
[359285372,1745892649908,-470.0,0.00027671,2]
[359285373,1745892649917,-470.0,0.00027671,2]
[359285374,1745892649927,-470.0,0.00027671,2]
[359285375,1745892649937,-470.0,0.00027671,2]
[359285376,1745892649946,-470.0,0.00027671,2]
[359285377,1745892649955,-470.0,0.00027671,2]
[359285378,1745892649965,-470.0,0.00027671,2]
[359285379,1745892649975,-470.0,0.00027671,2]
[359285380,1745892649985,-470.0,0.00027671,2]
[359285381,1745892649994,-470.0,0.00027671,2]
[359285382,1745892650004,-470.0,0.00027671,2]
[359285383,1745892650187,-63.70741019,0.00027671,2]
[359285384,1745892650199,-406.29258981,0.00027671,2]
[359285385,1745892650209,-186.14470499,0.00027671,2]
[359285386,1745892650221,-283.85529501,0.00027671,2]
[359285387,1745892650231,-372.19298041,0.00027671,2]
[359285388,1745892650244,-97.80701959,0.00027671,2]
[359285389,1745892650254,-470.0,0.00027671,2]
[359285390,1745892650263,-470.0,0.00027671,2]
[359285391,1745892650273,-470.0,0.00027671,2]
[359285392,1745892650283,-470.0,0.00027671,2]
[359285393,1745892650292,-470.0,0.00027671,2]
[359285394,1745892650302,-470.0,0.00027671,2]
[359285395,1745892650313,-469.15996899,0.00027671,2]
[359285396,1745892650323,-673.22,0.00027671,2]
[359285397,1745892650333,-470.0,0.00027671,2]
[359285398,1745892650343,-572.66,0.00027671,2]
[359285399,1745892650353,-470.0,0.00027671,2]
[359285400,1745892650362,-470.0,0.00027671,2]
[359285401,1745892650372,-470.0,0.00027671,2]
[359285402,1745892650382,-470.0,0.00027671,2]
[359285403,1745892650391,-470.0,0.00027671,2]
[359285404,1745892650403,-470.0,0.00027671,2]
[359285405,1745892650412,-470.0,0.00027671,2]
[359285406,1745892650422,-470.0,0.00027671,2]
[359285407,1745892650432,-470.0,0.00027671,2]
[359285408,1745892650442,-470.0,0.00027671,2]
[359285409,1745892650451,-470.0,0.00027671,2]
[359285410,1745892650461,-470.0,0.00027671,2]
[359285411,1745892650471,-470.0,0.00027671,2]
[359285412,1745892650480,-470.0,0.00027671,2]
[359285413,1745892650489,-731.66,0.00027671,2]
[359285414,1745892650499,-470.0,0.00027671,2]
[359285415,1745892650508,-755.29,0.00027671,2]
[359285416,1745892650517,-470.0,0.00027671,2]
[359285417,1745892650526,-470.0,0.00027671,2]
[359285418,1745892650536,-470.0,0.00027671,2]
[359285419,1745892650545,-470.0,0.00027671,2]
[359285420,1745892650558,-470.0,0.00027671,2]
[359285421,1745892650569,-470.0,0.00027671,2]
[359285422,1745892650579,-470.0,0.00027671,2]
[359285423,1745892650590,-470.0,0.00027671,2]
[359285424,1745892650601,-470.0,0.00027671,2]
[359285425,1745892650612,-470.0,0.00027671,2]
[359285426,1745892650622,-470.0,0.00027671,2]
[359285427,1745892650632,-470.0,0.00027671,2]
[359285428,1745892650642,-470.0,0.00027671,2]
[359285429,1745892650651,-470.0,0.00027671,2]
[359285430,1745892650661,-470.0,0.00027671,2]
[359285431,1745892650671,-470.0,0.00027671,2]
[359285432,1745892650681,-606.07,0.00027671,2]
[359285433,1745892650690,-470.0,0.00027671,2]
[359285434,1745892650699,-470.0,0.00027671,2]
[359285435,1745892650707,-470.0,0.00027671,2]
[359285436,1745892650715,-470.0,0.00027671,2]
[359285437,1745892650724,-470.0,0.00027671,2]
[359285438,1745892650733,-470.0,0.00027671,2]
[359285439,1745892650742,-580.67,0.00027671,2]
[359285440,1745892650752,-470.0,0.00027671,2]
[359285441,1745892650761,-470.0,0.00027671,2]
[359285442,1745892650771,-470.0,0.00027671,2]
[359285443,1745892650780,-470.0,0.00027671,2]
[359285444,1745892650789,-202.18925732,0.00027671,2]
[359285445,1745892650798,-90.6739626,0.00027671,2]
[359285446,1745892650862,-379.3260374,0.00027671,2]
[359285447,1745892650871,-619.85605223,0.00027671,2]
[359285448,1745892650881,-470.0,0.00027671,2]
[359285449,1745892650891,-472.0,0.00027671,2]
[359285450,1745892650900,-470.0,0.00027671,2]
[359285451,1745892650909,-551.72,0.00027671,2]
[359285452,1745892650919,-545.54,0.00027671,2]
[359285453,1745892650929,-629.5,0.00027671,2]
[359285454,1745892650938,-470.0,0.00027671,2]
[359285455,1745892650948,-470.0,0.00027671,2]
[359285456,1745892650958,-470.0,0.00027671,2]
[359285457,1745892650967,-470.0,0.00027671,2]
[359285458,1745892650977,-470.0,0.00027671,2]
[359285459,1745892650986,-470.0,0.00027671,2]
[359285460,1745892650995,-470.0,0.00027671,2]
[359285461,1745892651005,-470.0,0.00027671,2]
[359285462,1745892651014,-470.0,0.00027671,2]
[359285463,1745892651023,-470.0,0.00027671,2]
[359285464,1745892651033,-470.0,0.00027671,2]
[359285465,1745892651043,-470.0,0.00027671,2]
[359285466,1745892651053,-470.0,0.00027671,2]
[359285467,1745892651063,-470.0,0.00027671,2]
[359285468,1745892651072,-470.0,0.00027671,2]
[359285469,1745892651082,-470.0,0.00027671,2]
[359285470,1745892651092,-318.95359072,0.00027671,2]
[359285471,1745892651101,-470.0,0.00027671,2]
[359285472,1745892651111,-470.0,0.00027671,2]
[359285473,1745892651120,-470.0,0.00027671,2]
[359285474,1745892651131,-530.6,0.00027671,2]
[359285475,1745892651140,-470.0,0.00027671,2]
[359285476,1745892651150,-470.0,0.00027671,2]
[359285477,1745892651162,-470.0,0.00027671,2]
[359285478,1745892651172,-470.0,0.00027671,2]
[359285479,1745892651182,-470.0,0.00027671,2]
[359285480,1745892651191,-1000.0,0.00027671,2]
[359285481,1745892651201,-470.0,0.00027671,2]
[359285482,1745892651211,-470.0,0.00027671,2]
[359285483,1745892651221,-290.76620501,0.00027671,2]
[359285484,1745892651230,-470.0,0.00027671,2]
[359285485,1745892651239,-470.0,0.00027671,2]
[359285486,1745892651249,-690.79,0.00027671,2]
[359285487,1745892651259,-470.0,0.00027671,2]
[359285488,1745892651268,-186.92108197,0.00027671,2]
[359285489,1745892651278,-470.0,0.00027671,2]
[359285490,1745892651288,-470.0,0.00027671,2]
[359285491,1745892651297,-470.0,0.00027671,2]
[359285492,1745892651307,-486.75,0.00027671,2]
[359285493,1745892651318,-392.57235797,0.00027671,2]
[359285494,1745892651327,-470.0,0.00027671,2]